[Event "Titled Tuesday Blitz March 29 Late 2022"]
[White "Ezat, Mohamed"]
[Black "Milanovic, Marko"]
[WhiteFideId "10600906"]
[BlackFideId "980129"]
[WhiteElo "2386"]
[BlackElo "2159"]
[Result "1-0"]
[Round "05"]
[TimeControl "180+1"]
[Date "2022.03.30"]
[WhiteClock "0:01:13"]
[BlackClock "0:00:49"]

1. d4 {[%clk 0:03:00]}  d5 {[%clk 0:02:59]} 2. c4 {[%clk 0:02:59]}  c6 {[%clk 0:03:00]} 3. Nc3 {[%clk 0:02:57]}  e6 {[%clk 0:03:00]} 4. e4 {[%clk 0:02:52]}  dxe4 {[%clk 0:02:59]} 5. Nxe4 {[%clk 0:02:27]}  c5 {[%clk 0:02:59]} 6. d5 {[%clk 0:02:18]}  Nf6 {[%clk 0:02:51]} 7. Nxf6+ {[%clk 0:02:10]}  Qxf6 {[%clk 0:02:52]} 8. Nf3 {[%clk 0:02:10]}  exd5 {[%clk 0:02:47]} 9. cxd5 {[%clk 0:02:09]}  Bd6 {[%clk 0:02:40]} 10. Bb5+ {[%clk 0:02:06]}  Bd7 {[%clk 0:02:38]} 11. Qe2+ {[%clk 0:01:59]}  Qe7 {[%clk 0:02:37]} 12. Be3 {[%clk 0:01:58]}  O-O {[%clk 0:02:27]} 13. O-O {[%clk 0:01:56]}  Bxb5 {[%clk 0:02:26]} 14. Qxb5 {[%clk 0:01:49]}  a6 {[%clk 0:02:21]} 15. Qb6 {[%clk 0:01:47]}  Nd7 {[%clk 0:02:00]} 16. Qxb7 {[%clk 0:01:46]}  Rfb8 {[%clk 0:01:57]} 17. Qc6 {[%clk 0:01:45]}  Rc8 {[%clk 0:01:40]} 18. Qa4 {[%clk 0:01:41]}  Nb6 {[%clk 0:01:40]} 19. Qd1 {[%clk 0:01:32]}  Qe4 {[%clk 0:01:37]} 20. Ng5 {[%clk 0:01:24]}  Qxd5 {[%clk 0:01:32]} 21. Qh5 {[%clk 0:01:23]}  h6 {[%clk 0:01:30]} 22. Rad1 {[%clk 0:01:22]}  Qxa2 {[%clk 0:00:56]} 23. Rxd6 {[%clk 0:01:18]}  hxg5 {[%clk 0:00:48]} 24. Rxb6 {[%clk 0:01:17]}  Rab8 {[%clk 0:00:48]} 25. Rxb8 {[%clk 0:01:16]}  Rxb8 {[%clk 0:00:49]} 26. Qxg5 {[%clk 0:01:14]}  c4 {[%clk 0:00:49]} 27. Bd4 {[%clk 0:01:13]} 1-0


[Site "https://www.chess.com"]

[Event "Titled Tuesday Blitz March 29 Late 2022"]
[White "Fiol, Fabrice"]
[Black "Szente Varga, Fruzsina"]
[WhiteFideId "611670"]
[BlackFideId "712264"]
[WhiteElo "2398"]
[BlackElo "1994"]
[Result "1-0"]
[Round "05"]
[TimeControl "180+1"]
[Date "2022.03.30"]
[WhiteClock "0:00:13"]
[BlackClock "0:00:14"]

1. e4 {[%clk 0:03:00]}  e5 {[%clk 0:02:59]} 2. Nf3 {[%clk 0:02:56]}  Nc6 {[%clk 0:02:59]} 3. Bc4 {[%clk 0:02:56]}  Nf6 {[%clk 0:02:59]} 4. d3 {[%clk 0:02:56]}  Be7 {[%clk 0:02:59]} 5. c3 {[%clk 0:02:50]}  O-O {[%clk 0:02:59]} 6. Bb3 {[%clk 0:02:51]}  d5 {[%clk 0:02:57]} 7. Nbd2 {[%clk 0:02:48]}  a5 {[%clk 0:02:56]} 8. O-O {[%clk 0:02:46]}  Bg4 {[%clk 0:02:52]} 9. h3 {[%clk 0:02:45]}  dxe4 {[%clk 0:02:49]} 10. dxe4 {[%clk 0:02:42]}  Bxf3 {[%clk 0:02:49]} 11. Qxf3 {[%clk 0:02:42]}  a4 {[%clk 0:02:49]} 12. Bc2 {[%clk 0:02:36]}  a3 {[%clk 0:02:49]} 13. b3 {[%clk 0:02:35]}  Qd6 {[%clk 0:02:30]} 14. Rd1 {[%clk 0:02:33]}  Qc5 {[%clk 0:02:29]} 15. Nc4 {[%clk 0:02:16]}  Nd8 {[%clk 0:01:29]} 16. Be3 {[%clk 0:01:41]}  Qb5 {[%clk 0:01:29]} 17. Bd3 {[%clk 0:01:32]}  Ne6 {[%clk 0:01:08]} 18. Nb6 {[%clk 0:01:22]}  Qc6 {[%clk 0:01:05]} 19. Nxa8 {[%clk 0:01:06]}  Rxa8 {[%clk 0:01:06]} 20. Rac1 {[%clk 0:00:54]}  Nc5 {[%clk 0:00:53]} 21. Bxc5 {[%clk 0:00:48]}  Qxc5 {[%clk 0:00:50]} 22. Bc4 {[%clk 0:00:42]}  b5 {[%clk 0:00:48]} 23. Bf1 {[%clk 0:00:33]}  Qb6 {[%clk 0:00:46]} 24. c4 {[%clk 0:00:30]}  b4 {[%clk 0:00:39]} 25. Qf5 {[%clk 0:00:27]}  Bd6 {[%clk 0:00:35]} 26. g4 {[%clk 0:00:20]}  h6 {[%clk 0:00:34]} 27. h4 {[%clk 0:00:20]}  Qc6 {[%clk 0:00:34]} 28. Bg2 {[%clk 0:00:18]}  Nd7 {[%clk 0:00:31]} 29. g5 {[%clk 0:00:16]}  hxg5 {[%clk 0:00:31]} 30. hxg5 {[%clk 0:00:16]}  Nc5 {[%clk 0:00:31]} 31. Rd5 {[%clk 0:00:14]}  Qb6 {[%clk 0:00:19]} 32. g6 {[%clk 0:00:14]}  f6 {[%clk 0:00:18]} 33. Bh3 {[%clk 0:00:13]}  Re8 {[%clk 0:00:18]} 34. Qh5 {[%clk 0:00:13]}  Kf8 {[%clk 0:00:17]} 35. Qh8+ {[%clk 0:00:13]}  Ke7 {[%clk 0:00:18]} 36. Qxg7+ {[%clk 0:00:14]}  Kd8 {[%clk 0:00:19]} 37. Rcd1 {[%clk 0:00:13]}  Qc6 {[%clk 0:00:17]} 38. Qf7 {[%clk 0:00:12]}  Rf8 {[%clk 0:00:16]} 39. Qxf8+ {[%clk 0:00:12]}  Qe8 {[%clk 0:00:14]} 40. Rxd6+ {[%clk 0:00:13]}  cxd6 {[%clk 0:00:14]} 41. Rxd6+ {[%clk 0:00:13]} 1-0


[Site "https://www.chess.com"]

[Event "Titled Tuesday Blitz March 29 Late 2022"]
[White "Gatterer, Florian"]
[Black "Meza, Anahi"]
[WhiteFideId "811688"]
[BlackFideId "111325"]
[WhiteElo "2218"]
[BlackElo "1968"]
[Result "1-0"]
[Round "05"]
[TimeControl "180+1"]
[Date "2022.03.30"]
[WhiteClock "0:01:25"]
[BlackClock "0:00:15"]

1. f4 {[%clk 0:03:00]}  d5 {[%clk 0:02:38]} 2. Nf3 {[%clk 0:03:00]}  Nc6 {[%clk 0:02:21]} 3. g3 {[%clk 0:02:59]}  g6 {[%clk 0:02:17]} 4. Bg2 {[%clk 0:02:56]}  Bg7 {[%clk 0:02:18]} 5. O-O {[%clk 0:02:56]}  Nf6 {[%clk 0:02:18]} 6. d3 {[%clk 0:02:56]}  O-O {[%clk 0:02:18]} 7. Nc3 {[%clk 0:02:55]}  Bf5 {[%clk 0:02:14]} 8. Ne5 {[%clk 0:02:46]}  a6 {[%clk 0:01:50]} 9. h3 {[%clk 0:02:45]}  h5 {[%clk 0:01:46]} 10. Kh2 {[%clk 0:02:44]}  Qd6 {[%clk 0:01:42]} 11. Nxc6 {[%clk 0:02:38]}  bxc6 {[%clk 0:01:43]} 12. e4 {[%clk 0:02:38]}  Bd7 {[%clk 0:01:34]} 13. e5 {[%clk 0:02:37]}  Qb4 {[%clk 0:01:33]} 14. exf6 {[%clk 0:02:26]}  Bxf6 {[%clk 0:01:34]} 15. a3 {[%clk 0:02:24]}  Qc5 {[%clk 0:01:30]} 16. Na4 {[%clk 0:02:17]}  Qd4 {[%clk 0:01:26]} 17. c3 {[%clk 0:02:13]}  Qa7 {[%clk 0:01:25]} 18. d4 {[%clk 0:02:13]}  Bf5 {[%clk 0:01:23]} 19. Nc5 {[%clk 0:02:10]}  Rab8 {[%clk 0:01:23]} 20. Rf2 {[%clk 0:02:03]}  Rb5 {[%clk 0:01:15]} 21. g4 {[%clk 0:02:03]}  Bc8 {[%clk 0:01:13]} 22. gxh5 {[%clk 0:02:01]}  Rxc5 {[%clk 0:00:57]} 23. dxc5 {[%clk 0:01:59]}  Qxc5 {[%clk 0:00:58]} 24. Qf3 {[%clk 0:01:55]}  Bf5 {[%clk 0:00:53]} 25. Be3 {[%clk 0:01:53]}  Qb5 {[%clk 0:00:51]} 26. Bd4 {[%clk 0:01:49]}  Bh4 {[%clk 0:00:48]} 27. Rd2 {[%clk 0:01:36]}  c5 {[%clk 0:00:41]} 28. Bf2 {[%clk 0:01:35]}  Bf6 {[%clk 0:00:36]} 29. Qxd5 {[%clk 0:01:34]}  e6 {[%clk 0:00:36]} 30. Qf3 {[%clk 0:01:27]}  Qc4 {[%clk 0:00:28]} 31. Rg1 {[%clk 0:01:26]}  Kh8 {[%clk 0:00:18]} 32. Bf1 {[%clk 0:01:26]}  Rb8 {[%clk 0:00:15]} 33. Bxc4 {[%clk 0:01:25]} 1-0


[Site "https://www.chess.com"]

[Event "Titled Tuesday Blitz March 29 Late 2022"]
[White "Gauri, Shankar"]
[Black "Stanisz, Patryk"]
[WhiteFideId "5041350"]
[BlackFideId "1123106"]
[WhiteElo "2240"]
[BlackElo "1876"]
[Result "1-0"]
[Round "05"]
[TimeControl "180+1"]
[Date "2022.03.30"]
[WhiteClock "0:01:45"]
[BlackClock "0:00:03"]

1. e4 {[%clk 0:02:34]}  c5 {[%clk 0:02:59]} 2. Nf3 {[%clk 0:02:30]}  Nc6 {[%clk 0:02:59]} 3. Bb5 {[%clk 0:02:30]}  g6 {[%clk 0:02:59]} 4. Bxc6 {[%clk 0:02:30]}  dxc6 {[%clk 0:03:00]} 5. O-O {[%clk 0:02:30]}  Bg7 {[%clk 0:03:00]} 6. d3 {[%clk 0:02:30]}  Nf6 {[%clk 0:03:00]} 7. a4 {[%clk 0:02:30]}  Nd7 {[%clk 0:02:56]} 8. a5 {[%clk 0:02:30]}  e5 {[%clk 0:02:53]} 9. Nc3 {[%clk 0:02:29]}  Qe7 {[%clk 0:02:53]} 10. Nd2 {[%clk 0:02:30]}  Nf8 {[%clk 0:02:53]} 11. Nc4 {[%clk 0:02:30]}  Ne6 {[%clk 0:02:44]} 12. Be3 {[%clk 0:02:29]}  O-O {[%clk 0:02:13]} 13. Qd2 {[%clk 0:02:29]}  Re8 {[%clk 0:01:59]} 14. Kh1 {[%clk 0:02:28]}  f5 {[%clk 0:01:57]} 15. exf5 {[%clk 0:02:28]}  gxf5 {[%clk 0:01:58]} 16. f4 {[%clk 0:02:28]}  exf4 {[%clk 0:01:53]} 17. Bxf4 {[%clk 0:02:28]}  Nxf4 {[%clk 0:01:54]} 18. Qxf4 {[%clk 0:02:28]}  Be6 {[%clk 0:01:01]} 19. Rae1 {[%clk 0:02:26]}  Qf6 {[%clk 0:01:01]} 20. Nd6 {[%clk 0:02:24]}  Rf8 {[%clk 0:00:55]} 21. Nxb7 {[%clk 0:02:19]}  Bh6 {[%clk 0:00:39]} 22. Qd6 {[%clk 0:02:14]}  Rae8 {[%clk 0:00:28]} 23. Nxc5 {[%clk 0:02:12]}  Kf7 {[%clk 0:00:05]} 24. Qxc6 {[%clk 0:02:07]}  Bd2 {[%clk 0:00:03]} 25. Rxe6 {[%clk 0:02:03]}  Rxe6 {[%clk 0:00:03]} 26. Qd5 {[%clk 0:01:46]}  Re8 {[%clk 0:00:03]} 27. Rxf5 {[%clk 0:01:45]} 1-0


[Site "https://www.chess.com"]

[Event "Titled Tuesday Blitz March 29 Late 2022"]
[White "Gledura, Benjamin"]
[Black "Vasquez Schroeder, Rodrigo"]
[WhiteFideId "712779"]
[BlackFideId "3400042"]
[WhiteElo "2326"]
[BlackElo "2561"]
[Result "0-1"]
[Round "05"]
[TimeControl "180+1"]
[Date "2022.03.29"]
[WhiteClock "0:00:06"]
[BlackClock "0:00:21"]

1. Nf3 {[%clk 0:03:00]}  c5 {[%clk 0:02:59]} 2. e4 {[%clk 0:03:00]}  d6 {[%clk 0:02:59]} 3. d4 {[%clk 0:03:00]}  cxd4 {[%clk 0:02:59]} 4. Nxd4 {[%clk 0:03:01]}  Nf6 {[%clk 0:03:00]} 5. Nc3 {[%clk 0:03:02]}  a6 {[%clk 0:03:00]} 6. g3 {[%clk 0:03:01]}  e6 {[%clk 0:02:59]} 7. Bg2 {[%clk 0:03:00]}  Bd7 {[%clk 0:03:00]} 8. O-O {[%clk 0:03:00]}  Nc6 {[%clk 0:03:01]} 9. h3 {[%clk 0:02:55]}  Be7 {[%clk 0:03:01]} 10. Be3 {[%clk 0:02:54]}  O-O {[%clk 0:03:00]} 11. Qe2 {[%clk 0:02:53]}  Rc8 {[%clk 0:02:57]} 12. f4 {[%clk 0:02:53]}  b5 {[%clk 0:02:53]} 13. a3 {[%clk 0:02:48]}  Qc7 {[%clk 0:02:50]} 14. g4 {[%clk 0:02:42]}  Nxd4 {[%clk 0:02:48]} 15. Bxd4 {[%clk 0:02:42]}  e5 {[%clk 0:02:25]} 16. Bf2 {[%clk 0:02:41]}  Bc6 {[%clk 0:02:08]} 17. f5 {[%clk 0:02:36]}  h6 {[%clk 0:02:08]} 18. h4 {[%clk 0:02:35]}  Nh7 {[%clk 0:02:07]} 19. Rad1 {[%clk 0:02:31]}  Rb8 {[%clk 0:01:58]} 20. Nd5 {[%clk 0:02:30]}  Bxd5 {[%clk 0:01:58]} 21. Rxd5 {[%clk 0:02:31]}  Qd8 {[%clk 0:01:49]} 22. Qe1 {[%clk 0:02:30]}  Nf6 {[%clk 0:01:49]} 23. Rd3 {[%clk 0:02:22]}  Nxg4 {[%clk 0:01:48]} 24. Bg3 {[%clk 0:02:22]}  b4 {[%clk 0:01:39]} 25. Bf3 {[%clk 0:02:06]}  Nf6 {[%clk 0:01:37]} 26. axb4 {[%clk 0:01:36]}  Qb6+ {[%clk 0:01:34]} 27. Bf2 {[%clk 0:01:28]}  Qxb4 {[%clk 0:01:34]} 28. b3 {[%clk 0:01:19]}  a5 {[%clk 0:01:30]} 29. Qe2 {[%clk 0:01:08]}  a4 {[%clk 0:01:26]} 30. bxa4 {[%clk 0:01:06]}  Qxa4 {[%clk 0:01:26]} 31. Kh1 {[%clk 0:01:06]}  Rfc8 {[%clk 0:01:24]} 32. c3 {[%clk 0:01:05]}  Qa3 {[%clk 0:01:22]} 33. Be1 {[%clk 0:00:58]}  Rb2 {[%clk 0:01:21]} 34. Qe3 {[%clk 0:00:59]}  Qc5 {[%clk 0:01:18]} 35. Qc1 {[%clk 0:00:57]}  Rcb8 {[%clk 0:01:14]} 36. Rg1 {[%clk 0:00:57]}  Kh8 {[%clk 0:01:11]} 37. Bd2 {[%clk 0:00:53]}  Qf2 {[%clk 0:01:08]} 38. Rg2 {[%clk 0:00:46]}  Qxh4+ {[%clk 0:00:59]} 39. Rh2 {[%clk 0:00:46]}  Qg3 {[%clk 0:00:59]} 40. Rg2 {[%clk 0:00:46]}  Qh4+ {[%clk 0:00:43]} 41. Rh2 {[%clk 0:00:46]}  Nxe4 {[%clk 0:00:33]} 42. Rxh4 {[%clk 0:00:45]}  Nf2+ {[%clk 0:00:33]} 43. Kg2 {[%clk 0:00:34]}  Nxd3 {[%clk 0:00:33]} 44. Qd1 {[%clk 0:00:19]}  Bxh4 {[%clk 0:00:32]} 45. Be2 {[%clk 0:00:19]}  Nf2 {[%clk 0:00:28]} 46. Qe1 {[%clk 0:00:17]}  Rc2 {[%clk 0:00:27]} 47. f6 {[%clk 0:00:15]}  Rbb2 {[%clk 0:00:26]} 48. fxg7+ {[%clk 0:00:15]}  Kxg7 {[%clk 0:00:27]} 49. Kf3 {[%clk 0:00:13]}  Rxd2 {[%clk 0:00:25]} 50. Qg1+ {[%clk 0:00:14]}  Kf6 {[%clk 0:00:25]} 51. Qg8 {[%clk 0:00:13]}  e4+ {[%clk 0:00:24]} 52. Kf4 {[%clk 0:00:12]}  Rxe2 {[%clk 0:00:19]} 53. Qd8+ {[%clk 0:00:10]}  Kg7 {[%clk 0:00:20]} 54. Qxh4 {[%clk 0:00:10]}  Nd3+ {[%clk 0:00:20]} 55. Kf5 {[%clk 0:00:08]}  Rf2+ {[%clk 0:00:21]} 56. Kxe4 {[%clk 0:00:06]}  Rf4+ {[%clk 0:00:21]} 0-1


[Site "https://www.chess.com"]

[Event "Titled Tuesday Blitz March 29 Late 2022"]
[White "Goltsev, Dmitry"]
[Black "Le Goff, Ronan"]
[WhiteFideId "24176710"]
[BlackFideId "612073"]
[WhiteElo "2659"]
[BlackElo "2530"]
[Result "1/2-1/2"]
[Round "05"]
[TimeControl "180+1"]
[Date "2022.03.30"]
[WhiteClock "0:00:34"]
[BlackClock "0:00:04"]

1. e4 {[%clk 0:02:59]}  e5 {[%clk 0:02:59]} 2. Nf3 {[%clk 0:02:59]}  Nc6 {[%clk 0:02:59]} 3. Bb5 {[%clk 0:02:59]}  a6 {[%clk 0:02:58]} 4. Ba4 {[%clk 0:02:59]}  Nf6 {[%clk 0:02:58]} 5. O-O {[%clk 0:02:59]}  b5 {[%clk 0:02:58]} 6. Bb3 {[%clk 0:02:59]}  Be7 {[%clk 0:02:59]} 7. Re1 {[%clk 0:02:57]}  d6 {[%clk 0:02:58]} 8. c3 {[%clk 0:02:57]}  O-O {[%clk 0:02:58]} 9. h3 {[%clk 0:02:55]}  Nb8 {[%clk 0:02:50]} 10. d4 {[%clk 0:02:55]}  Nbd7 {[%clk 0:02:49]} 11. a4 {[%clk 0:02:54]}  Bb7 {[%clk 0:02:47]} 12. d5 {[%clk 0:02:52]}  Nc5 {[%clk 0:02:28]} 13. Bc2 {[%clk 0:02:50]}  c6 {[%clk 0:02:26]} 14. dxc6 {[%clk 0:02:45]}  Bxc6 {[%clk 0:02:24]} 15. axb5 {[%clk 0:02:45]}  axb5 {[%clk 0:02:24]} 16. Rxa8 {[%clk 0:02:46]}  Qxa8 {[%clk 0:02:24]} 17. Nbd2 {[%clk 0:02:41]}  Ncxe4 {[%clk 0:02:20]} 18. Nxe4 {[%clk 0:02:39]}  Bxe4 {[%clk 0:02:14]} 19. Bg5 {[%clk 0:02:32]}  Bxf3 {[%clk 0:02:10]} 20. gxf3 {[%clk 0:02:33]}  Rd8 {[%clk 0:01:56]} 21. Qd3 {[%clk 0:02:31]}  g6 {[%clk 0:01:54]} 22. Kg2 {[%clk 0:02:26]}  Nh5 {[%clk 0:01:40]} 23. Bd2 {[%clk 0:02:19]}  Qb7 {[%clk 0:01:30]} 24. Ra1 {[%clk 0:02:14]}  d5 {[%clk 0:01:08]} 25. Ra5 {[%clk 0:02:03]}  e4 {[%clk 0:00:57]} 26. Qxb5 {[%clk 0:01:53]}  exf3+ {[%clk 0:00:56]} 27. Kxf3 {[%clk 0:01:54]}  Qc8 {[%clk 0:00:50]} 28. Kg2 {[%clk 0:01:51]}  Qe6 {[%clk 0:00:46]} 29. Qd3 {[%clk 0:01:44]}  Qe5 {[%clk 0:00:41]} 30. Qe3 {[%clk 0:01:36]}  Qf6 {[%clk 0:00:36]} 31. Ra7 {[%clk 0:01:33]}  Bd6 {[%clk 0:00:35]} 32. Qd4 {[%clk 0:01:23]}  Be5 {[%clk 0:00:32]} 33. Qg4 {[%clk 0:01:20]}  d4 {[%clk 0:00:29]} 34. Bg5 {[%clk 0:01:18]}  Qb6 {[%clk 0:00:23]} 35. Ra4 {[%clk 0:01:02]}  Qc6+ {[%clk 0:00:15]} 36. Be4 {[%clk 0:01:02]}  Qxa4 {[%clk 0:00:15]} 37. Bxd8 {[%clk 0:01:03]}  dxc3 {[%clk 0:00:14]} 38. bxc3 {[%clk 0:00:58]}  Nf4+ {[%clk 0:00:13]} 39. Kf3 {[%clk 0:00:54]}  Qd1+ {[%clk 0:00:13]} 40. Kg3 {[%clk 0:00:52]}  Ne6+ {[%clk 0:00:13]} 41. Kg2 {[%clk 0:00:49]}  Qxg4+ {[%clk 0:00:12]} 42. hxg4 {[%clk 0:00:50]}  Nxd8 {[%clk 0:00:12]} 43. c4 {[%clk 0:00:50]}  Ne6 {[%clk 0:00:11]} 44. Bc2 {[%clk 0:00:45]}  Nc5 {[%clk 0:00:10]} 45. Kf3 {[%clk 0:00:44]}  Kf8 {[%clk 0:00:10]} 46. Ke3 {[%clk 0:00:43]}  f6 {[%clk 0:00:10]} 47. f4 {[%clk 0:00:43]}  Bb2 {[%clk 0:00:09]} 48. g5 {[%clk 0:00:35]}  Kg7 {[%clk 0:00:08]} 49. Bd1 {[%clk 0:00:33]}  fxg5 {[%clk 0:00:08]} 50. fxg5 {[%clk 0:00:34]}  h6 {[%clk 0:00:08]} 51. gxh6+ {[%clk 0:00:34]}  Kxh6 {[%clk 0:00:09]} 52. Kf4 {[%clk 0:00:31]}  Kg7 {[%clk 0:00:08]} 53. Bc2 {[%clk 0:00:30]}  Kf6 {[%clk 0:00:08]} 54. Bxg6 {[%clk 0:00:28]}  Kxg6 {[%clk 0:00:09]} 55. Ke3 {[%clk 0:00:29]}  Kf6 {[%clk 0:00:09]} 56. Kf4 {[%clk 0:00:30]}  Ke6 {[%clk 0:00:10]} 57. Kf3 {[%clk 0:00:30]}  Bf6 {[%clk 0:00:10]} 58. Kf4 {[%clk 0:00:30]}  Kd6 {[%clk 0:00:10]} 59. Kf5 {[%clk 0:00:31]}  Ba1 {[%clk 0:00:10]} 60. Kf4 {[%clk 0:00:31]}  Nb3 {[%clk 0:00:11]} 61. Kf5 {[%clk 0:00:32]}  Kc5 {[%clk 0:00:11]} 62. Ke4 {[%clk 0:00:33]}  Kxc4 {[%clk 0:00:12]} 63. Kf5 {[%clk 0:00:34]}  Bd4 {[%clk 0:00:13]} 64. Ke4 {[%clk 0:00:34]}  Nc5+ {[%clk 0:00:12]} 65. Kf5 {[%clk 0:00:34]}  Kd5 {[%clk 0:00:13]} 66. Kf4 {[%clk 0:00:35]}  Ne6+ {[%clk 0:00:13]} 67. Kf5 {[%clk 0:00:35]}  Be3 {[%clk 0:00:12]} 68. Kf6 {[%clk 0:00:35]}  Bf4 {[%clk 0:00:12]} 69. Kf5 {[%clk 0:00:35]}  Bh2 {[%clk 0:00:11]} 70. Kg4 {[%clk 0:00:35]}  Ke4 {[%clk 0:00:10]} 71. Kh3 {[%clk 0:00:36]}  Be5 {[%clk 0:00:10]} 72. Kg4 {[%clk 0:00:36]}  Bd4 {[%clk 0:00:09]} 73. Kh3 {[%clk 0:00:34]}  Kf4 {[%clk 0:00:08]} 74. Kg2 {[%clk 0:00:34]}  Be3 {[%clk 0:00:07]} 75. Kf1 {[%clk 0:00:34]}  Kf3 {[%clk 0:00:06]} 76. Ke1 {[%clk 0:00:35]}  Nd4 {[%clk 0:00:07]} 77. Kf1 {[%clk 0:00:35]}  Bf4 {[%clk 0:00:05]} 78. Kg1 {[%clk 0:00:35]}  Ne2+ {[%clk 0:00:05]} 79. Kh1 {[%clk 0:00:34]}  Be3 {[%clk 0:00:04]} 80. Kh2 {[%clk 0:00:34]}  Bf2 {[%clk 0:00:05]} 81. Kh1 {[%clk 0:00:34]}  Bg3 {[%clk 0:00:04]} 1/2-1/2


[Site "https://www.chess.com"]

[Event "Titled Tuesday Blitz March 29 Late 2022"]
[White "Hakobyan, Aram"]
[Black "Li, Ben"]
[WhiteFideId "13306677"]
[BlackFideId "2089980"]
[WhiteElo "2557"]
[BlackElo "2267"]
[Result "1-0"]
[Round "05"]
[TimeControl "180+1"]
[Date "2022.03.29"]
[WhiteClock "0:01:11"]
[BlackClock "0:01:01"]

1. d4 {[%clk 0:03:00]}  d5 {[%clk 0:02:59]} 2. Nf3 {[%clk 0:03:01]}  Nf6 {[%clk 0:02:59]} 3. c3 {[%clk 0:03:02]}  c5 {[%clk 0:02:58]} 4. dxc5 {[%clk 0:03:01]}  e6 {[%clk 0:02:58]} 5. Be3 {[%clk 0:03:02]}  a5 {[%clk 0:02:53]} 6. c4 {[%clk 0:03:00]}  Na6 {[%clk 0:02:47]} 7. cxd5 {[%clk 0:03:00]}  Nxd5 {[%clk 0:02:48]} 8. Bd4 {[%clk 0:03:00]}  Nxc5 {[%clk 0:02:48]} 9. e3 {[%clk 0:02:59]}  Nf6 {[%clk 0:02:34]} 10. Nc3 {[%clk 0:02:58]}  Be7 {[%clk 0:02:34]} 11. Bc4 {[%clk 0:02:46]}  O-O {[%clk 0:02:33]} 12. O-O {[%clk 0:02:46]}  Bd7 {[%clk 0:02:33]} 13. Ne5 {[%clk 0:02:43]}  Rc8 {[%clk 0:02:33]} 14. Qe2 {[%clk 0:02:42]}  Bc6 {[%clk 0:02:30]} 15. Nxc6 {[%clk 0:02:40]}  Rxc6 {[%clk 0:02:30]} 16. Rfd1 {[%clk 0:02:40]}  Qb8 {[%clk 0:02:22]} 17. Bb5 {[%clk 0:02:33]}  Rcc8 {[%clk 0:02:22]} 18. Qf3 {[%clk 0:02:31]}  Rfd8 {[%clk 0:02:19]} 19. Rac1 {[%clk 0:02:29]}  h6 {[%clk 0:02:16]} 20. h3 {[%clk 0:02:28]}  e5 {[%clk 0:02:13]} 21. Bxc5 {[%clk 0:02:25]}  Rxd1+ {[%clk 0:02:07]} 22. Rxd1 {[%clk 0:02:25]}  Rxc5 {[%clk 0:02:08]} 23. a4 {[%clk 0:02:14]}  Rc8 {[%clk 0:01:58]} 24. Qe2 {[%clk 0:02:08]}  Rd8 {[%clk 0:01:55]} 25. Bc4 {[%clk 0:02:07]}  Rxd1+ {[%clk 0:01:55]} 26. Qxd1 {[%clk 0:02:08]}  Qd8 {[%clk 0:01:55]} 27. Qb3 {[%clk 0:02:08]}  Bb4 {[%clk 0:01:52]} 28. Bxf7+ {[%clk 0:02:07]}  Kh8 {[%clk 0:01:50]} 29. Bg6 {[%clk 0:02:04]}  Qe7 {[%clk 0:01:46]} 30. Qc4 {[%clk 0:01:58]}  Qd7 {[%clk 0:01:30]} 31. Ne4 {[%clk 0:01:49]}  Nxe4 {[%clk 0:01:30]} 32. Bxe4 {[%clk 0:01:46]}  Qd1+ {[%clk 0:01:28]} 33. Kh2 {[%clk 0:01:45]}  Qd7 {[%clk 0:01:29]} 34. b3 {[%clk 0:01:44]}  Be1 {[%clk 0:01:25]} 35. Qc5 {[%clk 0:01:31]}  Bb4 {[%clk 0:01:19]} 36. Qa7 {[%clk 0:01:28]}  Kg8 {[%clk 0:01:14]} 37. Qa8+ {[%clk 0:01:20]}  Kf7 {[%clk 0:01:14]} 38. Bxb7 {[%clk 0:01:20]}  g6 {[%clk 0:01:07]} 39. Bd5+ {[%clk 0:01:19]}  Kg7 {[%clk 0:01:06]} 40. Qg8+ {[%clk 0:01:18]}  Kf6 {[%clk 0:01:06]} 41. g3 {[%clk 0:01:12]}  h5 {[%clk 0:01:05]} 42. h4 {[%clk 0:01:11]}  Qg7 {[%clk 0:01:01]} 43. Qe6# {[%clk 0:01:11]} 1-0


[Site "https://www.chess.com"]

[Event "Titled Tuesday Blitz March 29 Late 2022"]
[White "Hoffmann, Asa"]
[Black "Desideri, Ricardo Maruchi"]
[WhiteFideId "2001470"]
[BlackFideId "2110440"]
[WhiteElo "2117"]
[BlackElo "1945"]
[Result "1-0"]
[Round "05"]
[TimeControl "180+1"]
[Date "2022.03.30"]
[WhiteClock "0:01:32"]
[BlackClock "0:00:03"]

1. d4 {[%clk 0:02:58]}  Nf6 {[%clk 0:02:59]} 2. Bg5 {[%clk 0:02:54]}  e6 {[%clk 0:02:56]} 3. Nd2 {[%clk 0:02:53]}  c5 {[%clk 0:02:55]} 4. e3 {[%clk 0:02:53]}  a6 {[%clk 0:02:49]} 5. Bd3 {[%clk 0:02:49]}  Be7 {[%clk 0:02:49]} 6. c3 {[%clk 0:02:47]}  d5 {[%clk 0:02:45]} 7. f4 {[%clk 0:02:47]}  Nbd7 {[%clk 0:02:33]} 8. Ngf3 {[%clk 0:02:40]}  Ng4 {[%clk 0:02:15]} 9. Qe2 {[%clk 0:02:38]}  f6 {[%clk 0:01:48]} 10. Bh4 {[%clk 0:02:27]}  Nh6 {[%clk 0:01:47]} 11. e4 {[%clk 0:02:18]}  O-O {[%clk 0:01:24]} 12. O-O {[%clk 0:02:16]}  b5 {[%clk 0:01:11]} 13. exd5 {[%clk 0:02:14]}  exd5 {[%clk 0:01:10]} 14. Qe6+ {[%clk 0:02:13]}  Kh8 {[%clk 0:01:07]} 15. Qxd5 {[%clk 0:02:13]}  Rb8 {[%clk 0:00:52]} 16. Qh5 {[%clk 0:02:11]}  Bb7 {[%clk 0:00:40]} 17. Rae1 {[%clk 0:02:09]}  Bd6 {[%clk 0:00:36]} 18. Ne5 {[%clk 0:02:06]}  Nxe5 {[%clk 0:00:19]} 19. fxe5 {[%clk 0:02:00]}  Be7 {[%clk 0:00:19]} 20. Nf3 {[%clk 0:01:49]}  c4 {[%clk 0:00:11]} 21. Be4 {[%clk 0:01:44]}  Bxe4 {[%clk 0:00:08]} 22. Rxe4 {[%clk 0:01:44]}  Qd5 {[%clk 0:00:09]} 23. Rf4 {[%clk 0:01:42]}  fxe5 {[%clk 0:00:07]} 24. Rxf8+ {[%clk 0:01:37]}  Bxf8 {[%clk 0:00:06]} 25. Qxe5 {[%clk 0:01:36]}  Qb7 {[%clk 0:00:03]} 26. Ng5 {[%clk 0:01:32]} 1-0


[Site "https://www.chess.com"]